fUST/lending_fUST_20260123
["ID","MTS","AMOUNT","RATE_DAILY","PERIOD"]
[403116822,1769174341403,-381.318,0.000331,30]
[403116823,1769174341444,-1292.09,0.00033123,120]
[403116824,1769174341485,-1132.36,0.00033137,60]
[403116825,1769174341522,-1292.09,0.0003315,120]
[403116826,1769174341560,-1113.21,0.0003315,34]
[403116827,1769174341596,-71658.36923591,0.00033159,30]
[403116828,1769174341632,-150.9849015,0.00033165,120]
[403116829,1769174341667,-1292.09,0.00033178,120]
[403116830,1769174341701,-1283.79204232,0.000332,120]
[403116831,1769174341736,-80156.19589893,0.000332,117]
[403116832,1769174341771,-80156.19589892,0.000332,117]
[403116833,1769174341809,-80156.19589892,0.000332,117]
[403116834,1769174341848,-80156.19589892,0.000332,117]
[403116835,1769174341888,-80156.19589892,0.000332,117]
[403116836,1769174341927,-1292.09,0.00033205,120]
[403116837,1769174341971,-1292.09,0.00033232,120]
[403116838,1769174342035,-1132.36,0.00033237,60]
[403116839,1769174342085,-1292.09,0.0003326,120]
[403116840,1769174342133,-342.07060674,0.00033261,30]
[403116841,1769174342187,-1292.09,0.00033287,120]
[403116842,1769174342231,-600.0,0.000333,33]
[403116843,1769174342275,-1292.09,0.00033315,120]
[403116844,1769174342320,-22341.1276948,0.0003333,30]
[403116845,1769174342365,-1132.36,0.00033337,60]
[403116846,1769174342410,-1292.09,0.00033342,120]
[403116847,1769174342456,-1292.09,0.00033369,120]
[403116848,1769174342502,-200.0,0.00033369,120]
[403116849,1769174342546,-294.80678008,0.00033372,60]
[403116850,1769174342590,-1292.09,0.00033397,120]
[403116851,1769174342633,-1292.09,0.00033424,120]
[403116852,1769174342677,-1132.36,0.00033437,60]
[403116853,1769174342717,-1292.09,0.00033452,120]
[403116854,1769174342755,-1292.09,0.00033479,120]
[403116855,1769174342792,-411.0,0.000335,120]
[403116856,1769174342829,-1292.20175726,0.00033506,120]
[403116857,1769174342868,-1132.36,0.00033537,60]
[403116858,1769174342906,-1132.36,0.00033637,60]
[403116859,1769174342947,-1113.21,0.00033698,35]
[403116860,1769174342993,-1132.36,0.00033737,60]
[403116861,1769174343040,-1132.36,0.00033837,60]
[403116862,1769174343088,-200.0,0.00033929,120]
[403116863,1769174343138,-1132.36,0.00033937,60]
[403116864,1769174343187,-1999.0,0.00033972,120]
[403116865,1769174343232,-3000.0,0.00033999,60]
[403116866,1769174343274,-215.73037555,0.00034,120]
[403116867,1769174343317,-700.0,0.00034,120]
[403116868,1769174343358,-200.0,0.00034,120]
[403116869,1769174343400,-1000.0,0.00034,120]
[403116870,1769174343442,-10000.0,0.00034,30]
[403116871,1769174343482,-1000.0,0.00034,120]
[403116872,1769174343522,-600000.0,0.00034,120]
[403116873,1769174343559,-500.0,0.00034,30]
[403116874,1769174343597,-14640.59924805,0.00034,90]
[403116875,1769174343640,-175.18545296,0.00034,120]
[403116876,1769174343680,-1132.36,0.00034037,60]
[403116877,1769174343898,-200.0,0.00034043,120]
[403116878,1769174343942,-797.48709534,0.00034069,120]
[403116879,1769174343987,-32620.4991479,0.00034099,120]
[403116880,1769174344032,-1132.36,0.00034137,60]
[403116881,1769174344074,-150.9849015,0.00034165,120]
[403116882,1769174344117,-200.0,0.0003421,120]
[403116883,1769174344163,-200.0,0.00034212,120]
[403116884,1769174344209,-1132.36,0.00034237,60]
[403116885,1769174344252,-1113.21,0.00034246,36]
[403116886,1769174344293,-505.28399668,0.000343,30]
[403116887,1769174344335,-1132.36,0.00034337,60]
[403116888,1769174344375,-1132.36,0.00034437,60]
[403116889,1769174344441,-1132.36,0.00034537,60]
[403116890,1769174344484,-665.02318617,0.0003454,30]
[403116891,1769174344528,-151.0,0.00034603,30]
[403116892,1769174344573,-151.0,0.00034603,30]
[403116893,1769174344616,-250.0,0.00034603,30]
[403116894,1769174344661,-414.0,0.00034603,30]
[403116895,1769174344702,-151.0,0.00034603,31]
[403116896,1769174344744,-156.587,0.00034603,31]
[403116897,1769174344786,-250.0,0.00034603,31]
[403116898,1769174344830,-151.0,0.00034603,30]
[403116899,1769174344874,-162.380719,0.00034603,33]
[403116900,1769174344920,-151.0,0.00034603,33]
[403116901,1769174344967,-251.99374606,0.00034603,33]
[403116902,1769174345013,-151.0,0.00034603,31]
[403116903,1769174345058,-429.318,0.00034603,31]
[403116904,1769174345098,-151.0,0.00034603,33]
[403116905,1769174345140,-445.202766,0.00034603,33]
[403116906,1769174345183,-151.0,0.00034603,30]
[403116907,1769174345228,-151.0,0.00034603,35]
[403116908,1769174345273,-461.67526834,0.00034603,35]
[403116909,1769174345316,-151.0,0.00034603,30]
[403116910,1769174345354,-250.0,0.00034603,30]
[403116911,1769174345391,-151.0,0.00034603,30]
[403116912,1769174345430,-156.587,0.00034603,31]
[403116913,1769174345468,-178.07010149,0.00034603,40]
[403116914,1769174345506,-478.75725327,0.00034603,40]
[403116915,1769174345546,-2600.0,0.00034603,30]
[403116916,1769174345587,-156.587,0.00034603,31]
[403116917,1769174345630,-250.0,0.00034603,31]
[403116918,1769174345671,-151.0,0.00034603,31]
[403116919,1769174345714,-162.380719,0.00034603,33]
[403116920,1769174345753,-2696.2,0.00034603,30]
[403116921,1769174345791,-162.380719,0.00034603,33]
[403116922,1769174345829,-203.61413283,0.00034603,33]
[403116923,1769174345868,-250.0,0.00034603,30]
[403116924,1769174345906,-250.0,0.00034603,33]
[403116925,1769174345947,-168.3888056,0.00034603,35]
[403116926,1769174345986,-2795.9594,0.00034603,30]
[403116927,1769174346028,-250.0,0.00034603,31]
[403116928,1769174346067,-2000.0,0.00034603,30]
[403116929,1769174346110,-174.61919141,0.00034603,40]
[403116930,1769174346152,-2899.4098978,0.00034603,30]
[403116931,1769174346194,-2074.0,0.00034603,31]
[403116932,1769174346242,-500.0,0.00034603,30]
[403116933,1769174346282,-250.0,0.00034603,33]
[403116934,1769174346320,-3006.68806402,0.00034603,30]
[403116935,1769174346358,-2150.738,0.00034603,33]
[403116936,1769174346396,-518.5,0.00034603,31]
[403116937,1769174346435,-3117.93552239,0.00034603,30]
[403116938,1769174346476,-2230.315306,0.00034603,35]
[403116939,1769174346517,-537.6845,0.00034603,33]
[403116940,1769174346557,-151.0,0.00034603,30]
[403116941,1769174346595,-3233.29913672,0.00034603,30]
[403116942,1769174346634,-2312.83697232,0.00034603,40]
[403116943,1769174346670,-557.5788265,0.00034603,35]
[403116944,1769174346710,-151.0,0.00034603,31]
[403116945,1769174346748,-3352.93120477,0.00034603,30]
[403116946,1769174346791,-578.20924308,0.00034603,40]
[403116947,1769174346832,-151.0,0.00034603,33]
[403116948,1769174346872,-3476.98965935,0.00034603,30]
[403116949,1769174346916,-2835.88637143,0.00034603,30]
[403116950,1769174346960,-500.0,0.00034603,30]
[403116951,1769174347005,-151.0,0.00034603,30]
[403116952,1769174347052,-500.0,0.00034603,31]
[403116953,1769174347096,-263.54408394,0.00034603,31]
[403116954,1769174347143,-500.0,0.00034603,33]
[403116955,1769174347188,-160.0,0.00034603,30]
[403116956,1769174347236,-160.0,0.00034603,31]
[403116957,1769174347283,-1888.0,0.00034603,30]
[403116958,1769174347328,-151.0,0.00034603,30]
[403116959,1769174347371,-151.0,0.00034603,31]
[403116960,1769174347411,-2000.0,0.00034603,30]
[403116961,1769174347449,-151.0,0.00034603,33]
[403116962,1769174347490,-2000.0,0.00034603,30]
[403116963,1769174347528,-2000.0,0.00034603,30]
[403116964,1769174347565,-2000.0,0.00034603,30]
[403116965,1769174347600,-2000.0,0.00034603,30]
[403116966,1769174347635,-2000.0,0.00034603,30]
[403116967,1769174347673,-2000.0,0.00034603,30]
[403116968,1769174347709,-2000.0,0.00034603,30]
[403116969,1769174347745,-2000.0,0.00034603,30]
[403116970,1769174347781,-2004.02638853,0.00034603,30]
[403116971,1769174347944,-200.0,0.00034604,120]
[403116972,1769174347990,-200.0,0.00034604,120]
[403116973,1769174348035,-200.0,0.00034604,120]
[403116974,1769174348086,-1132.36,0.00034637,60]
[403116975,1769174348137,-1132.36,0.00034737,60]
[403116976,1769174348185,-1113.21,0.00034794,37]
[403116977,1769174348231,-500.0,0.000348,120]
[403116978,1769174348273,-1132.36,0.00034837,60]
[403116979,1769174348315,-1000.0,0.00034904,30]
[403116980,1769174348356,-1000.0,0.00034904,30]
[403116981,1769174348399,-1000.0,0.00034904,30]
[403116982,1769174348442,-1132.36,0.00034937,60]
[403116983,1769174348484,-229.6951959,0.00035,120]
[403116984,1769174348523,-205.7118259,0.00035,120]
[403116985,1769174348561,-410.2854335,0.00035,120]
[403116986,1769174348597,-500.0,0.00035,120]
[403116987,1769174348633,-200.0,0.00035,120]
[403116988,1769174348669,-100000.0,0.00035,30]
[403116989,1769174348705,-100000.0,0.00035,30]
[403116990,1769174348741,-150.0,0.00035,69]
[403116991,1769174348778,-218.97119667,0.00035,30]
[403116992,1769174348816,-2296.0,0.00035,30]
[403116993,1769174348854,-153.42958201,0.00035,120]
[403116994,1769174348891,-151.27469753,0.00035,120]
[403116995,1769174348932,-277.0,0.00035,120]
[403116996,1769174348972,-1190.4005746,0.00035,120]
[403116997,1769174349018,-282.992884,0.00035,30]
[403116998,1769174349058,-136758.872867,0.00035,30]
[403116999,1769174349100,-596.1531086,0.00035,120]
[403117000,1769174349141,-5000.0,0.00035,30]
[403117001,1769174349183,-1132.36,0.00035037,60]
[403117002,1769174349224,-1999.0,0.00035068,120]
[403117003,1769174349264,-200.0,0.0003512,120]
[403117004,1769174349304,-1132.36,0.00035137,60]
[403117005,1769174349344,-1132.36,0.00035237,60]
[403117006,1769174349381,-15461.81667778,0.00035271,120]
[403117007,1769174349420,-1132.36,0.00035337,60]
[403117008,1769174349463,-1113.21,0.00035342,38]
[403117009,1769174349507,-1132.36,0.00035437,60]
[403117010,1769174349548,-1132.36,0.00035537,60]
[403117011,1769174349587,-500.0,0.00035616,120]
[403117012,1769174349628,-200.0,0.00035618,120]
[403117013,1769174349668,-1132.36,0.00035637,60]
[403117014,1769174349707,-200.0,0.00035674,120]
[403117015,1769174349747,-200.0,0.00035701,120]
[403117016,1769174349783,-1132.36,0.00035737,60]
[403117017,1769174349822,-1132.36,0.00035837,60]
[403117018,1769174349860,-150.39523559,0.0003587,120]
[403117019,1769174349898,-1113.21,0.0003589,39]
[403117020,1769174349939,-200.0,0.00035899,120]
[403117021,1769174349979,-2239.87434316,0.000359,120]
[403117022,1769174350020,-1132.36,0.00035937,60]
[403117023,1769174350058,-185.0845845,0.00036,30]
[403117024,1769174350097,-422.11479752,0.00036,120]
[403117025,1769174350139,-1000.0,0.00036,120]
[403117026,1769174350181,-1029.0,0.00036,120]
[403117027,1769174350221,-5000.0,0.00036,90]
[403117028,1769174350263,-200.0,0.00036,120]
[403117029,1769174350304,-400.0,0.00036,120]
[403117030,1769174350345,-1088.999998,0.00036,30]
[403117031,1769174350387,-1132.36,0.00036037,60]
[403117032,1769174350428,-200.0,0.0003604,120]
[403117033,1769174350469,-845.6574568,0.00036069,120]
[403117034,1769174350510,-1132.36,0.00036137,60]
[403117035,1769174350553,-1457.50093893,0.00036164,120]
[403117036,1769174350596,-1132.36,0.00036237,60]
[403117037,1769174350638,-1132.36,0.00036337,60]
[403117038,1769174350681,-1132.36,0.00036437,60]
[403117039,1769174350723,-1113.21,0.00036438,40]
[403117040,1769174350763,-32499.85751388,0.000365,120]
[403117041,1769174350806,-1132.36,0.00036537,60]
[403117042,1769174350851,-1132.36,0.00036637,60]
[403117043,1769174350894,-1132.36,0.00036737,60]
[403117044,1769174350935,-25409.04480472,0.0003678,120]
[403117045,1769174350976,-151109.86056714,0.00036789,60]
[403117046,1769174351019,-1132.36,0.00036837,60]
[403117047,1769174351059,-2006.60795019,0.000369,120]
[403117048,1769174351099,-1132.36,0.00036937,60]
[403117049,1769174351141,-1113.21,0.00036986,41]
[403117050,1769174351180,-155.5762627,0.00036999,120]
[403117051,1769174351220,-1000.0,0.00037,120]
[403117052,1769174351261,-200.0,0.00037,120]
[403117053,1769174351301,-20000.0,0.00037,120]
[403117054,1769174351340,-300.0,0.00037,120]
[403117055,1769174351378,-4057.97278269,0.00037,30]
[403117056,1769174351418,-1000.0,0.00037,120]
[403117057,1769174351457,-156.65654949,0.00037,120]
[403117058,1769174351496,-1132.36,0.00037037,60]
[403117059,1769174351534,-1132.36,0.00037137,60]
[403117060,1769174351575,-1132.36,0.00037237,60]
[403117061,1769174351612,-1132.36,0.00037337,60]
[403117062,1769174351650,-391.0234663,0.00037416,30]
[403117063,1769174351687,-194.5256404,0.00037416,30]
[403117064,1769174351728,-610.8258112,0.00037416,30]
[403117065,1769174351766,-1252.8115964,0.00037416,30]
[403117066,1769174351938,-194.5256404,0.00037416,30]
[403117067,1769174351985,-1500.0,0.0003743,120]
[403117068,1769174352032,-1132.36,0.00037437,60]
[403117069,1769174352076,-1000.0,0.000375,120]
[403117070,1769174352118,-1113.21,0.00037534,42]
[403117071,1769174352165,-1132.36,0.00037537,60]
[403117072,1769174352214,-1132.36,0.00037637,60]
[403117073,1769174352260,-1132.36,0.00037737,60]
[403117074,1769174352304,-1132.36,0.00037837,60]
[403117075,1769174352348,-3460.50350864,0.0003784,120]
[403117076,1769174352389,-2000.0,0.000379,120]
[403117077,1769174352432,-1132.36,0.00037937,60]
[403117078,1769174352475,-1311.0,0.00038,120]
[403117079,1769174352518,-12306.9839366,0.00038,120]
[403117080,1769174352562,-200.0,0.00038,120]
[403117081,1769174352606,-5000.0,0.00038,60]
[403117082,1769174352651,-5000.0,0.00038,30]
[403117083,1769174352696,-5000.0,0.00038,30]
[403117084,1769174352738,-1171.98938955,0.00038,120]
[403117085,1769174352781,-6000.0,0.00038,30]
[403117086,1769174352824,-1017.3300266,0.00038,30]
[403117087,1769174352868,-8000.6964024,0.00038,60]
[403117088,1769174352914,-1132.36,0.00038037,60]
[403117089,1769174352958,-893.82781827,0.00038069,120]
[403117090,1769174353003,-1113.21,0.00038082,43]
[403117091,1769174353048,-209.05,0.000381,120]
[403117092,1769174353095,-1132.36,0.00038137,60]
[403117093,1769174353143,-1132.36,0.00038237,60]
[403117094,1769174353193,-194.5256404,0.00038238,30]
[403117095,1769174353243,-194.5256404,0.00038238,30]
[403117096,1769174353291,-194.5256404,0.00038238,30]
[403117097,1769174353338,-1132.36,0.00038337,60]
[403117098,1769174353386,-487.06704881,0.00038356,120]
[403117099,1769174353434,-500.0,0.00038356,120]
[403117100,1769174353481,-1132.36,0.00038437,120]
[403117101,1769174353528,-1132.36,0.00038537,120]
[403117102,1769174353574,-4970.29520375,0.0003858,60]
[403117103,1769174353618,-878.21,0.000386,120]
[403117104,1769174353660,-1113.21,0.0003863,44]
[403117105,1769174353703,-1132.36,0.00038637,120]
[403117106,1769174353744,-313.47957068,0.0003867,120]
[403117107,1769174353785,-1000.0,0.000387,120]
[403117108,1769174353828,-1132.36,0.00038737,120]
[403117109,1769174353872,-1132.36,0.00038837,120]
[403117110,1769174353917,-7027.02972599,0.00038875,60]
[403117111,1769174353963,-2000.0,0.000389,120]
[403117112,1769174354011,-1000.0,0.000389,120]
[403117113,1769174354078,-1000.0,0.000389,120]
[403117114,1769174354127,-1000.0,0.000389,120]
[403117115,1769174354179,-1000.0,0.000389,120]
[403117116,1769174354227,-1000.0,0.000389,120]
[403117117,1769174354276,-1132.36,0.00038937,120]
[403117118,1769174354324,-400.0,0.00039,120]
[403117119,1769174354372,-1000.0,0.00039,120]
[403117120,1769174354420,-200.0,0.00039,120]
[403117121,1769174354466,-2510.74397648,0.00039,120]
[403117122,1769174354512,-26998.95232756,0.00039,120]
[403117123,1769174354557,-2118.42315055,0.00039,120]
[403117124,1769174354602,-378.60500014,0.00039,120]
[403117125,1769174354648,-4000.0,0.00039,60]
[403117126,1769174354697,-1132.36,0.00039037,120]
[403117127,1769174354744,-1132.36,0.00039137,120]
[403117128,1769174354790,-1113.21,0.00039178,45]
[403117129,1769174354838,-1132.36,0.00039237,120]
[403117130,1769174354888,-1132.36,0.00039337,120]
[403117131,1769174354936,-1132.36,0.00039437,120]
[403117132,1769174354985,-2300.0,0.000395,120]
[403117133,1769174355034,-1000.0,0.000395,120]
[403117134,1769174355082,-1132.36,0.00039537,120]
[403117135,1769174355130,-341.023,0.00039614,55]
[403117136,1769174355179,-1132.36,0.00039637,120]
[403117137,1769174355227,-1113.21,0.00039726,46]
[403117138,1769174355274,-1132.36,0.00039737,120]
[403117139,1769174355321,-2442.23357513,0.000398,90]
[403117140,1769174355369,-1132.36,0.00039837,120]
[403117141,1769174355416,-2000.0,0.000399,120]
[403117142,1769174355463,-1132.36,0.00039937,120]
[403117143,1769174355508,-1137.0031752,0.0004,30]
[403117144,1769174355555,-3049.01428624,0.0004,120]
[403117145,1769174355601,-200.0,0.0004,120]
[403117146,1769174355648,-1103.75241346,0.0004,120]
[403117147,1769174355696,-500.0,0.0004,30]
[403117148,1769174355743,-1529469.20892283,0.0004,120]
[403117149,1769174355791,-200.0,0.0004,120]
[403117150,1769174355840,-500.0,0.0004,120]
[403117151,1769174355887,-672.0,0.0004,120]
[403117152,1769174355933,-250.0,0.0004,120]
[403117153,1769174355978,-319.6534935,0.0004,120]
[403117154,1769174356024,-39900.0,0.0004,120]
[403117155,1769174356071,-2498.89435382,0.0004,120]
[403117156,1769174356119,-35488.0,0.0004,120]
[403117157,1769174356167,-239662.28236209,0.0004,120]
[403117158,1769174356218,-105579.16472218,0.0004,120]
[403117159,1769174356270,-250.3286561,0.0004,120]
[403117160,1769174356318,-441381.25113126,0.0004,120]
[403117161,1769174356481,-1000.0,0.0004,60]
[403117162,1769174356528,-2800.0,0.0004,120]
[403117163,1769174356572,-10517.79531084,0.0004,100]
[403117164,1769174356616,-340.72471428,0.0004,30]
[403117165,1769174356659,-587145.51920444,0.0004,120]
[403117166,1769174356703,-1000.0,0.0004,120]
[403117167,1769174356745,-1000.0,0.0004,120]
[403117168,1769174356789,-1000.0,0.0004,120]
[403117169,1769174356832,-1000.0,0.0004,120]
[403117170,1769174356876,-1000.0,0.0004,120]
[403117171,1769174356920,-597935.77702474,0.0004,120]
[403117172,1769174356964,-108681.10022785,0.0004,120]
[403117173,1769174357007,-305.30953982,0.0004,120]
[403117174,1769174357055,-767.38067361,0.0004,30]
[403117175,1769174357100,-56306.95069333,0.0004,30]
[403117176,1769174357145,-3555.26500368,0.0004,120]
[403117177,1769174357189,-176.56934209,0.0004,120]
[403117178,1769174357234,-67067.56140553,0.0004,120]
[403117179,1769174357281,-1132.36,0.00040037,120]
[403117180,1769174357328,-941.99817973,0.00040069,120]
[403117181,1769174357375,-1132.36,0.00040137,120]
[403117182,1769174357422,-1132.36,0.00040237,120]
[403117183,1769174357468,-1113.21,0.00040273,47]
[403117184,1769174357515,-1132.36,0.00040337,120]
[403117185,1769174357564,-1132.36,0.00040437,120]
[403117186,1769174357610,-1132.36,0.00040537,120]
[403117187,1769174357655,-1132.36,0.00040637,120]
[403117188,1769174357700,-1132.36,0.00040737,120]
[403117189,1769174357745,-3288.99,0.000408,90]
[403117190,1769174357789,-1113.21,0.00040821,48]
[403117191,1769174357836,-1132.69040355,0.00040837,120]
[403117192,1769174357884,-2000.0,0.000409,120]
[403117193,1769174357932,-487.0,0.00040993,120]
[403117194,1769174357979,-878.4,0.00040993,120]
[403117195,1769174358028,-1000.0,0.00041,120]
[403117196,1769174358075,-2000.0,0.00041,120]
[403117197,1769174358122,-2280.15696022,0.00041,120]
[403117198,1769174358174,-850.0,0.00041,120]
[403117199,1769174358222,-156.2,0.00041041,120]
[403117200,1769174358270,-156.2,0.00041041,120]
[403117201,1769174358315,-156.2,0.00041041,120]
[403117202,1769174358362,-156.2,0.00041041,120]
[403117203,1769174358409,-2729.92,0.0004107,120]
[403117204,1769174358454,-1915.87765195,0.00041096,30]
[403117205,1769174358501,-500.0,0.00041096,120]
[403117206,1769174358544,-2620.93,0.00041096,120]
[403117207,1769174358587,-2735.78,0.00041096,120]
[403117208,1769174358627,-218.2632604,0.000411,120]
[403117209,1769174358668,-218.26,0.000411,120]
[403117210,1769174358710,-169.76031365,0.000411,120]
[403117211,1769174358748,-169.76031365,0.000411,120]
[403117212,1769174358786,-169.76031365,0.000411,120]
[403117213,1769174358827,-169.76031365,0.000411,120]
[403117214,1769174358868,-169.76031365,0.000411,120]
[403117215,1769174358908,-169.76,0.000411,120]
[403117216,1769174358947,-154.34679209,0.000411,120]
[403117217,1769174358986,-154.34679209,0.000411,120]
[403117218,1769174359028,-154.34679209,0.000411,120]
[403117219,1769174359073,-154.34679209,0.000411,120]
[403117220,1769174359114,-154.34679209,0.000411,120]
[403117221,1769174359155,-154.34679209,0.000411,120]
[403117222,1769174359199,-154.34679209,0.000411,120]
[403117223,1769174359247,-154.34679209,0.000411,120]
[403117224,1769174359292,-154.34679209,0.000411,120]
[403117225,1769174359335,-154.34679209,0.000411,120]
[403117226,1769174359379,-154.34679209,0.000411,120]
[403117228,1769174359421,-154.34679209,0.000411,120]
[403117229,1769174359464,-154.34,0.000411,120]
[403117230,1769174359507,-234.09263467,0.000411,120]
[403117231,1769174359549,-234.09263467,0.000411,120]
[403117232,1769174359591,-234.09263467,0.000411,120]
[403117233,1769174359633,-234.09263467,0.000411,120]
[403117234,1769174359674,-234.09263467,0.000411,120]
[403117235,1769174359715,-234.09263467,0.000411,120]
[403117236,1769174359755,-234.09263467,0.000411,120]
[403117237,1769174359797,-234.09263467,0.000411,120]
[403117238,1769174359839,-234.09263467,0.000411,120]
[403117239,1769174359883,-234.09263467,0.000411,120]
[403117240,1769174359928,-234.09263467,0.000411,120]
[403117241,1769174359973,-234.09263467,0.000411,120]
[403117242,1769174360018,-234.09263467,0.000411,120]
[403117243,1769174360064,-234.09263467,0.000411,120]
[403117244,1769174360110,-234.09263467,0.000411,120]
[403117245,1769174360151,-234.09263467,0.000411,120]
[403117246,1769174360193,-234.09263467,0.000411,120]
[403117247,1769174360237,-234.09263467,0.000411,120]
[403117248,1769174360283,-234.09263467,0.000411,120]
[403117249,1769174360327,-234.09,0.000411,120]
[403117250,1769174360370,-164.28916023,0.000411,120]
[403117251,1769174360410,-164.28916023,0.000411,120]
[403117252,1769174360451,-164.28916023,0.000411,120]
[403117253,1769174360493,-164.28916023,0.000411,120]
[403117254,1769174360535,-164.28916023,0.000411,120]
[403117255,1769174360576,-164.28916023,0.000411,120]
[403117256,1769174360620,-164.28916023,0.000411,120]
[403117257,1769174360839,-164.28916023,0.000411,120]
[403117258,1769174360884,-164.28,0.000411,120]
[403117259,1769174360927,-172.50361824,0.000411,120]
[403117260,1769174360966,-172.50361824,0.000411,120]
[403117261,1769174361005,-172.50361824,0.000411,120]
[403117262,1769174361046,-172.50361824,0.000411,120]
[403117263,1769174361087,-172.50361824,0.000411,120]
[403117264,1769174361128,-172.50361824,0.000411,120]
[403117265,1769174361178,-172.50361824,0.000411,120]
[403117266,1769174361225,-172.50361824,0.000411,120]
[403117267,1769174361269,-172.50361824,0.000411,120]
[403117268,1769174361313,-172.50361824,0.000411,120]
[403117269,1769174361356,-172.50361824,0.000411,120]
[403117270,1769174361397,-172.50361824,0.000411,120]
[403117271,1769174361438,-172.50361824,0.000411,120]
[403117272,1769174361482,-172.50361824,0.000411,120]
[403117273,1769174361527,-172.50361824,0.000411,120]
[403117274,1769174361569,-172.50361824,0.000411,120]
[403117275,1769174361610,-172.50361824,0.000411,120]
[403117276,1769174361652,-172.50361824,0.000411,120]
[403117277,1769174361695,-172.50361824,0.000411,120]
[403117278,1769174361739,-172.5,0.000411,120]
[403117279,1769174361781,-610.5862872,0.00041367,30]
[403117280,1769174361824,-613.6874177,0.00041367,30]
[403117281,1769174361866,-1113.21,0.00041369,49]
[403117282,1769174361909,-300.0,0.000414,120]
[403117283,1769174361953,-2699.88,0.000418,90]
[403117284,1769174361997,-2000.0,0.000419,120]
[403117285,1769174362041,-1113.21,0.00041917,50]
[403117286,1769174362083,-200.0,0.00042,120]
[403117287,1769174362125,-2000.0,0.00042,120]
[403117288,1769174362179,-20000.0,0.00042,120]
[403117289,1769174362224,-1000.0,0.00042,120]
[403117290,1769174362268,-1000.0,0.00042,120]
[403117291,1769174362312,-1000.0,0.00042,120]
[403117292,1769174362355,-1000.0,0.00042,120]
[403117293,1769174362396,-1000.0,0.00042,120]
[403117294,1769174362438,-1298.44,0.00042,30]
[403117295,1769174362477,-990.16854119,0.00042069,120]
[403117296,1769174362517,-1113.21,0.00042465,51]
[403117297,1769174362555,-6009.67551326,0.000428,120]
[403117298,1769174362593,-2000.0,0.000429,120]
[403117299,1769174362630,-506.78,0.00043,120]
[403117300,1769174362669,-1000.0,0.00043,120]
[403117301,1769174362710,-2000.0,0.00043,120]
[403117302,1769174362750,-300.0,0.00043,120]
[403117303,1769174362790,-6000.0,0.00043,30]
[403117304,1769174362830,-314694.68149,0.00043,120]
[403117305,1769174362870,-1113.21,0.00043013,52]
[403117306,1769174362911,-200.0,0.00043255,120]
[403117307,1769174362953,-200.0,0.00043255,120]
[403117308,1769174362997,-200.0,0.00043255,120]
[403117309,1769174363043,-200.0,0.00043255,120]
[403117310,1769174363091,-200.0,0.00043255,120]
[403117311,1769174363139,-200.0,0.00043255,120]
[403117312,1769174363186,-62699.95170459,0.000435,120]
[403117313,1769174363232,-1113.27326365,0.00043561,53]
[403117314,1769174363276,-270.12,0.00043726,90]
[403117315,1769174363322,-2463.21231731,0.000438,30]
[403117316,1769174363367,-500.0,0.00043835,80]
[403117317,1769174363413,-500.0,0.00043836,120]
[403117318,1769174363458,-500.0,0.00043836,120]
[403117319,1769174363508,-150.0,0.00043855,30]
[403117320,1769174363553,-2000.0,0.000439,120]
[403117321,1769174363598,-500.0,0.00043973,120]
[403117322,1769174363643,-3400.0,0.00044,120]